fUST/lending_fUST_20240126
["ID","MTS","AMOUNT","RATE_DAILY","PERIOD"]
[312758251,1706199034189,-154.98450155,0.00020771,4]
[312758253,1706199034199,-679.03304923,0.00020771,2]
[312758254,1706199034208,-154.98450155,0.00020772,2]
[312758255,1706199034219,-154.98450155,0.00020772,2]
[312758257,1706199034228,-1994.28554433,0.00020772,2]
[312758259,1706199034238,-1198.61763963,0.00020772,2]
[312758261,1706199034247,-10546.60603151,0.00020772,2]
[312758263,1706199034256,-24900.0,0.00020773,2]
[312758265,1706199034265,-154.98450155,0.00020875,2]
[312758267,1706199034274,-154.98450155,0.00020875,2]
[312758268,1706199034283,-850.73963902,0.00020876,2]
[312758270,1706199034293,-323.30988592,0.00020876,2]
[312758272,1706199034302,-154.98450155,0.00020877,2]
[312758273,1706199034311,-1583.23422085,0.00020877,2]
[312758281,1706199034421,-164.59714006,0.00020882,2]
[312758283,1706199034430,-230.4142086,0.00020991,2]
[312758285,1706199034440,-170.6217642,0.00021614,2]
[312758287,1706199034449,-1500.0,0.00021969,2]
[312758288,1706199034461,-294.12602671,0.00022,4]
[312758290,1706199034470,-3970.33105698,0.00022,2]
[312758292,1706199034480,-426.19756797,0.00022053,2]
[312758293,1706199034489,-166.666666,0.00022054,2]
[312758294,1706199034498,-194.07706277,0.00022433,2]
[312758296,1706199034508,-3238.32135489,0.00022434,2]
[312758298,1706199034519,-166.666666,0.00022655,2]
[312758299,1706199034529,-1416.02167727,0.00023,2]
[312758300,1706199034539,-200.0,0.00023086,7]
[312758301,1706199034549,-166.666666,0.00023256,2]
[312758302,1706199034559,-168.917191,0.00023786,2]
[312758303,1706199034568,-166.666666,0.00023858,2]
[312758304,1706199034578,-166.666666,0.00024459,2]
[312758305,1706199034589,-380.0,0.00024658,2]
[312758306,1706199034600,-245.4717269,0.00024898,2]
[312758307,1706199034610,-498.66582765,0.0002496,5]
[312758308,1706199034620,-13804.64,0.0002497,3]
[312758309,1706199034630,-2074.94658461,0.00024988,2]
[312758310,1706199034640,-2104.41067508,0.00024988,2]
[312758311,1706199034651,-470.87385711,0.00024988,2]
[312758312,1706199034664,-193.62860915,0.00024996,2]
[312758313,1706199034673,-528.13445908,0.00024996,2]
[312758314,1706199034682,-260.64797716,0.00024997,2]
[312758315,1706199034692,-1500.90139842,0.00025,2]
[312758316,1706199034703,-1002.8647388,0.00025,2]
[312758317,1706199034714,-260.18097711,0.00025,2]
[312758318,1706199034723,-4725.91421399,0.00025,2]
[312758319,1706199034733,-154.98450155,0.00025,2]
[312758320,1706199034743,-7385.90525508,0.00025,2]
[312758321,1706199034754,-166.666666,0.0002506,2]
[312758322,1706199034763,-280.0,0.00025395,7]
[312758323,1706199034772,-167.71599843,0.00026475,2]
[312758324,1706199034782,-155.11023675,0.00026578,2]
[312758325,1706199034792,-155.14456294,0.00026578,2]
[312758326,1706199034801,-155.32974409,0.00026578,2]
[312758327,1706199034810,-168.92690996,0.00026578,2]
[312758328,1706199034821,-209.61775108,0.00026578,2]
[312758329,1706199034830,-155.07502483,0.00026578,2]
[312758330,1706199034839,-154.99904511,0.00026578,2]
[312758331,1706199034849,-200.0,0.00026578,2]
[312758332,1706199034859,-155.66950186,0.00026578,2]
[312758333,1706199034867,-155.0316447,0.00026579,2]
[312758334,1706199034877,-290.53836744,0.00027,2]
[312758335,1706199034886,-167.71599843,0.00027081,2]
[312758336,1706199034895,-167.71599843,0.00027688,2]
[312758337,1706199034904,-391.0,0.00027934,15]
[312758338,1706199034913,-159.24390231,0.0002828,2]
[312758339,1706199034922,-167.71599843,0.00028294,2]
[312758340,1706199034931,-683.46048677,0.00028796,2]
[312758341,1706199034940,-932.82009383,0.00028796,2]
[312758342,1706199034949,-263.72063021,0.00028796,2]
[312758343,1706199034958,-155.17369071,0.00028796,2]
[312758344,1706199034968,-155.03070341,0.00028796,2]
[312758345,1706199034977,-4865.5098759,0.00028796,2]
[312758346,1706199034987,-978.72522112,0.00028796,2]
[312758347,1706199034997,-157.64914444,0.00028796,2]
[312758348,1706199035007,-272.59010519,0.00028796,2]
[312758349,1706199035015,-155.20393255,0.00028796,2]
[312758350,1706199035025,-555.44587219,0.00028797,2]
[312758351,1706199035034,-283.58279837,0.00028797,2]
[312758352,1706199035044,-166.05500787,0.00028797,2]
[312758353,1706199035054,-229.65600878,0.00028798,2]
[312758354,1706199035064,-298.26002398,0.00028798,2]
[312758355,1706199035074,-24934.53838043,0.00028798,2]
[312758356,1706199035084,-182.14661417,0.00028798,2]
[312758357,1706199035093,-8533.93109689,0.00028798,2]
[312758358,1706199035104,-5382.01349715,0.00028798,2]
[312758359,1706199035114,-7766.26922979,0.00028799,2]
[312758360,1706199035124,-40380.9239188,0.000288,2]
[312758361,1706199035134,-156.17608089,0.00028838,2]
[312758362,1706199035144,-500.0,0.00028839,2]
[312758363,1706199035154,-500.0,0.00028839,2]
[312758364,1706199035165,-225.96529543,0.00028839,2]
[312758365,1706199035174,-394.43431108,0.00028839,2]
[312758366,1706199035184,-500.0,0.00028839,2]
[312758367,1706199035194,-569.32134487,0.00028839,2]
[312758368,1706199035211,-500.0,0.00028839,2]
[312758369,1706199035220,-500.0,0.00028839,2]
[312758370,1706199035230,-500.0,0.00028839,2]
[312758371,1706199035239,-346.56523246,0.00028839,2]
[312758372,1706199035249,-579.26476587,0.00028839,2]
[312758373,1706199035258,-500.0,0.00028839,2]
[312758374,1706199035267,-500.0,0.00028839,2]
[312758375,1706199035276,-500.0,0.00028839,2]
[312758376,1706199035285,-500.0,0.00028839,2]
[312758377,1706199035295,-500.0,0.00028839,2]
[312758378,1706199035303,-500.0,0.00028839,2]
[312758379,1706199035312,-500.0,0.00028839,2]
[312758380,1706199035321,-500.0,0.00028839,2]
[312758381,1706199035330,-500.0,0.00028839,2]
[312758382,1706199035339,-500.0,0.00028839,2]
[312758383,1706199035348,-380.31889296,0.00028839,2]
[312758384,1706199035358,-500.0,0.00028839,2]
[312758385,1706199035366,-500.0,0.00028839,2]
[312758386,1706199035375,-500.0,0.00028839,2]
[312758387,1706199035384,-500.0,0.00028839,2]
[312758388,1706199035394,-500.0,0.00028839,2]
[312758389,1706199035403,-500.0,0.00028839,2]
[312758390,1706199035412,-500.0,0.00028839,2]
[312758391,1706199035421,-500.0,0.00028839,2]
[312758392,1706199035431,-500.0,0.00028839,2]
[312758393,1706199035440,-500.0,0.00028839,2]
[312758394,1706199035449,-244.91791978,0.00028839,2]
[312758395,1706199035458,-500.0,0.00028839,2]
[312758396,1706199035469,-499.99999999,0.00028839,2]
[312758397,1706199035478,-500.0,0.00028839,2]
[312758398,1706199035488,-500.0,0.00028839,2]
[312758399,1706199035497,-500.0,0.00028839,2]
[312758400,1706199035506,-500.0,0.00028839,2]
[312758401,1706199035516,-500.0,0.00028839,2]
[312758402,1706199035525,-500.0,0.00028839,2]
[312758403,1706199035534,-500.0,0.00028839,2]
[312758404,1706199035543,-500.0,0.00028839,2]
[312758405,1706199035552,-500.0,0.00028839,2]
[312758406,1706199035562,-500.0,0.00028839,2]
[312758407,1706199035571,-611.50289347,0.00028839,2]
[312758408,1706199035580,-500.0,0.00028839,2]
[312758409,1706199035589,-500.0,0.00028839,2]
[312758410,1706199035599,-500.0,0.00028839,2]
[312758411,1706199035607,-500.0,0.00028839,2]
[312758412,1706199035616,-500.0,0.00028839,2]
[312758413,1706199035627,-500.0,0.00028839,2]
[312758414,1706199035636,-500.0,0.00028839,2]
[312758415,1706199035648,-500.0,0.00028839,2]
[312758416,1706199035658,-500.0,0.00028839,2]
[312758417,1706199035670,-500.0,0.00028839,2]
[312758418,1706199035679,-500.0,0.00028839,2]
[312758419,1706199035690,-500.0,0.00028839,2]
[312758420,1706199035699,-500.0,0.00028839,2]
[312758421,1706199035709,-500.0,0.00028839,2]
[312758422,1706199035718,-500.0,0.00028839,2]
[312758423,1706199035728,-500.0,0.00028839,2]
[312758424,1706199035740,-500.0,0.00028839,2]
[312758425,1706199035750,-500.0,0.00028839,2]
[312758426,1706199035759,-500.0,0.00028839,2]
[312758427,1706199035768,-500.0,0.00028839,2]
[312758428,1706199035778,-500.0,0.00028839,2]
[312758429,1706199035787,-500.0,0.00028839,2]
[312758430,1706199035797,-500.0,0.00028839,2]
[312758431,1706199035806,-500.0,0.00028839,2]
[312758432,1706199035814,-500.0,0.00028839,2]
[312758433,1706199035823,-642.04460354,0.00028839,2]
[312758434,1706199035833,-500.0,0.00028839,2]
[312758435,1706199035843,-500.0,0.00028839,2]
[312758436,1706199035852,-500.0,0.00028839,2]
[312758437,1706199035861,-500.0,0.00028839,2]
[312758438,1706199035870,-500.0,0.00028839,2]
[312758439,1706199035879,-500.0,0.00028839,2]
[312758440,1706199035888,-500.0,0.00028839,2]
[312758441,1706199035897,-500.0,0.00028839,2]
[312758442,1706199035907,-500.0,0.00028839,2]
[312758443,1706199035917,-500.0,0.00028839,2]
[312758444,1706199035926,-500.0,0.00028839,2]
[312758445,1706199035935,-500.0,0.00028839,2]
[312758446,1706199035944,-500.0,0.00028839,2]
[312758447,1706199035954,-530.35656904,0.00028839,2]
[312758448,1706199035967,-500.0,0.00028839,2]
[312758449,1706199035977,-500.0,0.00028839,2]
[312758450,1706199035986,-500.0,0.00028839,2]
[312758451,1706199035996,-500.0,0.00028839,2]
[312758452,1706199036006,-650.0,0.00028839,2]
[312758453,1706199036015,-500.0,0.00028839,2]
[312758454,1706199036025,-531.67936701,0.00028839,2]
[312758455,1706199036035,-611.44784052,0.00028839,2]
[312758456,1706199036045,-500.0,0.00028839,2]
[312758457,1706199036055,-500.0,0.00028839,2]
[312758458,1706199036065,-619.08709211,0.00028839,2]
[312758459,1706199036075,-291.31420189,0.0002884,3]
[312758460,1706199036084,-76424.7542958,0.0002884,2]
[312758481,1706199038209,-11503.86,0.0002497,3]
[312758482,1706199038220,-26496.14,0.0002884,2]
[312758483,1706199038230,-970.72012283,0.0002884,2]
[312758485,1706199038270,-172108.38558137,0.0002884,2]
[312758487,1706199038279,-16794.35324464,0.000289,2]
[312758488,1706199038287,-167.71599843,0.000289,2]
[312758490,1706199038296,-1932.44477539,0.00029,2]
[312758492,1706199038305,-833.4574876,0.00029,2]
[312758494,1706199038313,-2038.7168945,0.00029,2]
[312758495,1706199038322,-157.84343966,0.00029,2]
[312758497,1706199038331,-2543.41353878,0.0002979,7]
[312758498,1706199038340,-1000.0,0.0003,4]
[312758499,1706199038350,-154.98450155,0.0003,4]
[312758500,1706199038359,-688.78830185,0.0003,4]
[312758501,1706199038369,-2372.54255137,0.0003,2]
[312758502,1706199038378,-166.95729913,0.0003,2]
[312758503,1706199038387,-715.22632042,0.0003,2]
[312758504,1706199038397,-2350.83227316,0.0003,2]
[312758505,1706199038408,-6202.72987763,0.0003,2]
[312758506,1706199038417,-2195.13400402,0.0003,2]
[312758507,1706199038427,-4988.57079427,0.0003,3]
[312758508,1706199038438,-18606.04614329,0.0003,2]
[312758509,1706199038447,-700.57786282,0.0003,2]
[312758510,1706199038456,-139264.62830083,0.0003,4]
[312758511,1706199038466,-243.76580051,0.0003,4]
[312758512,1706199038476,-155.74648817,0.0003,4]
[312758513,1706199038485,-797.64547305,0.0003,4]
[312758514,1706199038495,-254.0,0.0003,2]
[312758515,1706199038505,-155.16244617,0.00030136,2]
[312758516,1706199038514,-324.7059798,0.00030137,2]
[312758517,1706199038524,-311.1324524,0.00030137,2]
[312758518,1706199038533,-153.0,0.00030137,2]
[312758519,1706199038542,-153.0,0.00030137,2]
[312758520,1706199038552,-153.0,0.00030137,2]
[312758521,1706199038562,-153.0,0.00030137,2]
[312758522,1706199038571,-153.0,0.00030137,2]
[312758523,1706199038580,-153.0,0.00030137,2]
[312758524,1706199038590,-153.0,0.00030137,2]
[312758526,1706199038599,-199.3339408,0.00030137,2]
[312758527,1706199038608,-153.0,0.00030137,2]
[312758528,1706199038617,-153.0,0.00030137,2]
[312758529,1706199038626,-199.3339408,0.00030137,2]
[312758531,1706199038635,-199.3339408,0.00030137,2]
[312758532,1706199038646,-199.3339408,0.00030137,2]
[312758533,1706199038660,-199.3339408,0.00030137,2]
[312758534,1706199038670,-397.9054868,0.00030137,2]
[312758535,1706199038679,-306.0,0.00030137,2]
[312758536,1706199038690,-415.3960285,0.00030137,2]
[312758538,1706199038699,-153.0,0.00030137,2]
[312758540,1706199038709,-153.0,0.00030137,2]
[312758541,1706199038719,-153.0,0.00030137,2]
[312758543,1706199038729,-153.0,0.00030137,2]
[312758545,1706199038738,-307.4374714,0.00030137,2]
[312758547,1706199038747,-153.0,0.00030137,2]
[312758548,1706199038756,-153.0,0.00030137,2]
[312758550,1706199038767,-153.0,0.00030137,2]
[312758551,1706199038776,-403.5513808,0.00030137,2]
[312758552,1706199038786,-153.0,0.00030137,2]
[312758553,1706199038797,-199.3339408,0.00030137,2]
[312758554,1706199038807,-153.0,0.00030137,2]
[312758555,1706199038816,-153.0,0.00030137,2]
[312758556,1706199038825,-153.0,0.00030137,2]
[312758557,1706199038834,-153.0,0.00030137,2]
[312758559,1706199038845,-153.0,0.00030137,2]
[312758560,1706199038854,-153.0,0.00030137,2]
[312758561,1706199038863,-153.0,0.00030137,2]
[312758562,1706199038874,-398.6678816,0.00030137,2]
[312758563,1706199038884,-153.0,0.00030137,2]
[312758564,1706199038893,-153.0,0.00030137,2]
[312758565,1706199038903,-153.0,0.00030137,2]
[312758566,1706199038914,-153.0,0.00030137,2]
[312758567,1706199038923,-153.0,0.00030137,2]
[312758568,1706199038934,-153.0,0.00030137,2]
[312758569,1706199038944,-153.0,0.00030137,2]
[312758570,1706199038954,-307.5721256,0.00030137,2]
[312758571,1706199038963,-153.0,0.00030137,2]
[312758572,1706199038973,-153.0,0.00030137,2]
[312758573,1706199038983,-153.0,0.00030137,2]
[312758574,1706199038993,-153.0,0.00030137,2]
[312758575,1706199039003,-199.3339408,0.00030137,2]
[312758576,1706199039012,-199.3339408,0.00030137,2]
[312758577,1706199039021,-199.3339408,0.00030137,2]
[312758578,1706199039031,-199.3339408,0.00030137,2]
[312758579,1706199039041,-159.3657322,0.00030137,2]
[312758580,1706199039051,-153.0,0.00030137,2]
[312758581,1706199039061,-153.0,0.00030137,2]
[312758582,1706199039072,-153.0,0.00030137,2]
[312758583,1706199039082,-153.0,0.00030137,2]
[312758584,1706199039092,-153.0,0.00030137,2]
[312758585,1706199039102,-153.0,0.00030137,2]
[312758586,1706199039112,-397.257491,0.00030137,2]
[312758587,1706199039122,-153.0,0.00030137,2]
[312758588,1706199039132,-153.0,0.00030137,2]
[312758589,1706199039142,-153.0,0.00030137,2]
[312758590,1706199039153,-153.0,0.00030137,2]
[312758591,1706199039163,-306.0,0.00030137,2]
[312758592,1706199039172,-402.405187,0.00030137,2]
[312758593,1706199039182,-157.894736,0.00030137,2]
[312758594,1706199039191,-476.92689396,0.00030185,2]
[312758595,1706199039278,-2100.0,0.00030185,2]
[312758596,1706199039287,-2928.22166307,0.00030185,2]
[312758597,1706199039297,-878.46649892,0.00030185,2]
[312758598,1706199039306,-7294.74138588,0.00030185,2]
[312758599,1706199039315,-619.16875117,0.00030185,2]
[312758600,1706199039324,-200.0,0.00030728,15]
[312758601,1706199039334,-348.0,0.00030728,15]
[312758602,1706199039343,-157.894736,0.00030746,2]
[312758603,1706199039353,-154.3668201,0.00030878,2]
[312758604,1706199039362,-326.58097042,0.00031,7]
[312758605,1706199039371,-402.405187,0.00031115,2]
[312758606,1706199039381,-5000.0,0.00031116,7]
[312758607,1706199039390,-5000.0,0.00031116,7]
[312758608,1706199039399,-150.0,0.00031136,2]
[312758609,1706199039408,-157.894736,0.00031355,2]
[312758610,1706199039417,-311.91244819,0.00031799,4]
[312758611,1706199039426,-309.31860756,0.00031799,4]
[312758612,1706199039435,-157.894736,0.00031963,2]
[312758613,1706199039445,-402.405187,0.00032094,2]
[312758614,1706199039455,-150.0,0.00032136,2]
[312758615,1706199039467,-245.402279,0.000324,5]
[312758616,1706199039476,-157.894736,0.00032572,2]
[312758617,1706199039486,-20078.9928924,0.00032877,2]
[312758618,1706199039496,-154.98450155,0.00033,4]
[312758619,1706199039506,-276.02916029,0.00033,2]
[312758620,1706199039516,-254.0,0.00033,2]
[312758621,1706199039525,-254.0,0.00033,2]
[312758622,1706199039534,-402.405187,0.00033072,2]
[312758623,1706199039543,-157.894736,0.00033181,2]
[312758624,1706199039552,-500.0,0.00033338,7]
[312758625,1706199039561,-554.51466592,0.00033338,7]
[312758626,1706199039570,-500.0,0.00033338,7]
[312758627,1706199039579,-500.0,0.00033338,7]
[312758628,1706199039588,-500.0,0.00033338,7]
[312758629,1706199039597,-500.0,0.00033338,7]
[312758630,1706199039606,-500.0,0.00033338,7]
[312758631,1706199039615,-500.0,0.00033338,7]
[312758632,1706199039623,-500.0,0.00033338,7]
[312758633,1706199039633,-500.0,0.00033338,7]
[312758634,1706199039642,-500.0,0.00033338,7]
[312758635,1706199039651,-500.0,0.00033338,7]
[312758636,1706199039661,-521.90227233,0.00033338,7]
[312758637,1706199039672,-500.0,0.00033338,7]
[312758638,1706199039681,-500.0,0.00033338,7]
[312758639,1706199039690,-500.0,0.00033338,7]
[312758640,1706199039699,-500.0,0.00033338,7]
[312758641,1706199039709,-170.59411888,0.00033338,7]
[312758642,1706199039721,-249.17322401,0.00033338,7]
[312758643,1706199039730,-500.0,0.00033338,7]
[312758644,1706199039740,-500.0,0.00033338,7]
[312758645,1706199039749,-500.0,0.00033338,7]
[312758646,1706199039759,-500.0,0.00033338,7]
[312758647,1706199039767,-500.0,0.00033338,7]
[312758648,1706199039776,-500.0,0.00033338,7]
[312758649,1706199039786,-500.0,0.00033338,7]
[312758650,1706199039795,-500.0,0.00033338,7]
[312758651,1706199039803,-500.0,0.00033338,7]
[312758652,1706199039812,-500.0,0.00033338,7]
[312758653,1706199039821,-409.32301523,0.00033338,7]
[312758654,1706199039829,-500.0,0.00033338,7]
[312758655,1706199039838,-500.0,0.00033338,7]
[312758656,1706199039848,-500.0,0.00033338,7]
[312758657,1706199039857,-500.0,0.00033338,7]
[312758658,1706199039866,-500.0,0.00033338,7]
[312758659,1706199039874,-424.54867869,0.00033338,7]
[312758660,1706199039883,-500.0,0.00033338,7]
[312758661,1706199039892,-642.49486455,0.00033338,7]
[312758662,1706199039900,-500.0,0.00033338,7]
[312758663,1706199039909,-500.0,0.00033338,7]
[312758664,1706199039918,-500.0,0.00033338,7]
[312758665,1706199039926,-651.83922557,0.00033338,7]
[312758666,1706199039935,-500.0,0.00033338,7]
[312758667,1706199039945,-500.0,0.00033338,7]
[312758668,1706199039954,-500.0,0.00033338,7]
[312758669,1706199039964,-500.0,0.00033338,7]
[312758670,1706199039973,-500.0,0.00033338,7]
[312758671,1706199039981,-500.0,0.00033338,7]
[312758672,1706199039990,-500.0,0.00033338,7]
[312758673,1706199039999,-500.0,0.00033338,7]
[312758674,1706199040008,-500.0,0.00033338,7]
[312758675,1706199040017,-500.0,0.00033338,7]
[312758676,1706199040026,-500.0,0.00033338,7]
[312758677,1706199040035,-500.0,0.00033338,7]
[312758678,1706199040044,-500.0,0.00033338,7]
[312758679,1706199040054,-500.0,0.00033338,7]
[312758680,1706199040063,-500.0,0.00033338,7]
[312758681,1706199040072,-500.0,0.00033338,7]
[312758682,1706199040081,-500.0,0.00033338,7]
[312758683,1706199040091,-178.217096,0.00033338,7]
[312758684,1706199040101,-500.0,0.00033338,7]
[312758685,1706199040110,-500.0,0.00033338,7]
[312758686,1706199040120,-400.0,0.00033338,7]
[312758687,1706199040129,-500.0,0.00033338,7]
[312758688,1706199040138,-500.0,0.00033338,7]
[312758689,1706199040147,-500.0,0.00033338,7]
[312758690,1706199040157,-500.0,0.00033338,7]
[312758691,1706199040166,-500.0,0.00033338,7]
[312758692,1706199040175,-489.64065624,0.00033338,7]
[312758693,1706199040184,-500.0,0.00033338,7]
[312758694,1706199040194,-32911.81637178,0.00033339,3]
[312758695,1706199040203,-50000.0,0.00033339,3]
[312758696,1706199040212,-50000.0,0.00033339,3]
[312758697,1706199040222,-50000.0,0.00033339,3]
[312758698,1706199040232,-50000.0,0.00033339,3]
[312758699,1706199040241,-50000.0,0.00033339,3]
[312758700,1706199040251,-50000.0,0.00033339,3]
[312758701,1706199040261,-50000.0,0.00033339,3]
[312758702,1706199040270,-50000.0,0.00033339,3]
[312758703,1706199040279,-50000.0,0.00033339,3]
[312758704,1706199040289,-51674.25134121,0.00033339,4]
[312758705,1706199040298,-1808.59879694,0.00033339,2]
[312758707,1706199040307,-200.0,0.000334,4]
[312758708,1706199040316,-157.894736,0.0003379,2]
[312758709,1706199040326,-200.0,0.000338,15]
[312758710,1706199040335,-200.0,0.000338,15]
[312758711,1706199040344,-368.0,0.000338,15]
[312758712,1706199040353,-402.405187,0.00034051,2]
[312758713,1706199040362,-246.5520124,0.00034247,2]
[312758714,1706199040371,-157.894736,0.00034399,2]
[312758715,1706199040380,-592.34900571,0.00035,2]
[312758716,1706199040390,-154.98450155,0.00035,2]
[312758717,1706199040399,-2359.3181247,0.00035,2]
[312758718,1706199040408,-657.40715545,0.00035,7]
[312758719,1706199040418,-564.16006176,0.00035,2]
[312758720,1706199040427,-184.66976843,0.00035,2]
[312758721,1706199040436,-157.894736,0.00035008,2]
[312758722,1706199040446,-402.405187,0.00035029,2]
[312758723,1706199040455,-155.0,0.00035482,2]
[312758724,1706199040466,-1057.78,0.00035616,2]
[312758725,1706199040475,-1057.78,0.00035616,2]
[312758726,1706199040484,-1057.78,0.00035616,2]
[312758727,1706199040494,-1057.78,0.00035616,2]
[312758728,1706199040503,-1057.78,0.00035616,2]
[312758729,1706199040513,-1057.78,0.00035616,2]
[312758730,1706199040522,-1057.78,0.00035616,2]
[312758731,1706199040531,-1057.78,0.00035616,2]
[312758732,1706199040540,-1057.78,0.00035616,2]
[312758733,1706199040549,-1057.78,0.00035616,2]
[312758735,1706199040559,-1057.78,0.00035616,2]
[312758736,1706199040568,-1057.78,0.00035616,2]
[312758737,1706199040577,-1057.78,0.00035616,2]
[312758738,1706199040587,-1057.78,0.00035616,2]
[312758739,1706199040596,-1057.78,0.00035616,2]
[312758740,1706199040605,-1057.78,0.00035616,2]
[312758741,1706199040615,-1057.78,0.00035616,2]
[312758742,1706199040624,-1057.78,0.00035616,2]
[312758743,1706199040633,-1057.78,0.00035616,2]
[312758744,1706199040643,-1057.78,0.00035616,2]
[312758745,1706199040657,-1057.78,0.00035616,2]
[312758746,1706199040666,-1057.78,0.00035616,2]
[312758747,1706199040737,-1057.78,0.00035616,2]
[312758748,1706199040755,-1057.98927273,0.00035616,2]
[312758749,1706199040764,-157.894736,0.00035616,2]
[312758750,1706199040774,-633.21934811,0.00035735,2]
[312758751,1706199040783,-154.98450155,0.00036,4]
[312758752,1706199040793,-254.0,0.00036,2]
[312758753,1706199040803,-254.0,0.00036,2]
[312758754,1706199040812,-634.66127921,0.00036,2]
[312758755,1706199040821,-402.405187,0.00036008,2]
[312758756,1706199040831,-157.894736,0.00036225,2]
[312758757,1706199040840,-254.1375026,0.0003624,2]
[312758758,1706199040849,-7415.73993278,0.0003648,7]
[312758759,1706199040859,-8392.09761733,0.00036482,2]
[312758760,1706199040868,-576.0,0.000366,2]
[312758761,1706199040878,-157.894736,0.00036834,2]
[312758762,1706199040887,-155.0,0.00036852,2]
[312758763,1706199040896,-402.405187,0.00036986,2]
[312758764,1706199040906,-419.50880109,0.00037,2]
[312758765,1706199040915,-200.0,0.0003718,15]
[312758766,1706199040924,-200.0,0.0003718,15]
[312758767,1706199040933,-200.0,0.0003718,15]
[312758768,1706199040943,-200.0,0.0003718,15]
[312758769,1706199040953,-275.0,0.0003718,15]
[312758770,1706199040962,-217.33605951,0.0003724,2]
[312758771,1706199040972,-157.894736,0.00037443,2]
[312758772,1706199040981,-620.66096741,0.00037522,2]
[312758773,1706199040990,-620.73306396,0.000378,2]
[312758774,1706199041000,-5000.0,0.00037884,7]
[312758775,1706199041009,-402.405187,0.00037965,2]
[312758777,1706199041019,-154.98450155,0.00037998,4]
[312758779,1706199041028,-4011.78855735,0.00037998,4]
[312758780,1706199041038,-157.894736,0.00038052,2]
[312758781,1706199041047,-155.0,0.00038222,2]
[312758782,1706199041056,-243.4925815,0.0003825,7]
[312758783,1706199041065,-2147.50028627,0.000385,4]
[312758785,1706199041075,-157.894736,0.0003866,2]
[312758786,1706199041083,-402.405187,0.00038943,2]
[312758788,1706199041093,-254.0,0.00039,2]
[312758790,1706199041102,-66684.53261722,0.00039121,7]
[312758799,1706199041304,-20394.16704667,0.00039121,7]
[312758800,1706199041313,-157.894736,0.00039269,2]
[312758801,1706199041323,-5000.0,0.00039288,7]
[312758802,1706199041333,-620.03304837,0.00039398,2]
[312758803,1706199041342,-155.0,0.00039592,2]
[312758804,1706199041351,-620.0366532,0.0003969,2]
[312758805,1706199041361,-157.894736,0.00039878,2]
[312758806,1706199041370,-1639.80372899,0.00039919,10]
[312758807,1706199041382,-41291.62496613,0.00039919,10]
[312758808,1706199041391,-402.405187,0.00039922,2]
[312758809,1706199041401,-4041.39742033,0.0003999,4]
[312758810,1706199041410,-319.69879374,0.0004,4]
[312758811,1706199041420,-1011.57393685,0.0004,60]
[312758812,1706199041429,-2000.0,0.0004,27]
[312758813,1706199041439,-959.06296403,0.0004,2]
[312758814,1706199041450,-1618.93703526,0.0004,2]
[312758815,1706199041460,-2000.0,0.0004001,27]
[312758816,1706199041470,-2104.047072,0.0004002,27]
[312758817,1706199041479,-150.1,0.00040337,2]
[312758818,1706199041489,-157.894736,0.00040487,2]
[312758819,1706199041499,-158.06676767,0.000405,7]
[312758820,1706199041508,-5000.0,0.00040692,7]
[312758821,1706199041517,-402.405187,0.000409,2]
[312758822,1706199041527,-155.0,0.00040962,2]
[312758823,1706199041536,-206.22779054,0.00041095,2]